Workbook

Sheet 3 stage
A1: Heuristic Algorithms
A3: Year 0 | B3: 2016
A4: Sales in year 0 | B4: 2
A5: Asset intensity in year 0 | B5: -0.15
B7: Yr. 1-5 | C7: Yr. 6-10 | D7: Yr. 11+ | F7: Cost of capital | I7: 0.1
A8: Growth (g) | B8: =(25/B4)^(1/5)-1 -> 0.6572270087 | C8: 0.4 | D8: 0.03
A9: Profitability (p) | B9: 0.02 | C9: 0.04 | D9: 0.08
A10: Asset intensity (a) | B10: -0.15 | C10: -0.15 | D10: -0.15
A13: Year | B13: Sales | C13: g | D13: p | E13: a | F13: EBIAT | G13: NOA | H13: FCF | I13: Cum. FCF | J13: EV | K13: EV/EBIAT | L13: EV/Sales
A14: =B3 -> 2016 | B14: =B4 -> 2 | D14: =$B$9 -> 0.02 | E14: =$B$5 -> -0.15 | F14: =B14*D14 -> 0.04 | G14: =B14*E14 -> -0.3 | J14: =NPV($I$7,H15:$H$25,)+($H$26/($I$7-$D$8))/(1+$I$7)^($A$25-A14) -> 81.59280032
A15: =A14+1 -> 2017 | B15: =B14*(1+C15) -> 3.314454017 | C15: =$B$8 -> 0.6572270087 | D15: 0.02 | E15: =$B$10 -> -0.15 | F15: 0.06628908035 | G15: -0.4971681026 | H15: =B15*(D15-(E15-(E14/(1+C15)))) -> 0.2634571829 | I15: =I14+H15 -> 0.2634571829 | J15: =NPV($I$7,H16:$H$25,)+($H$26/($I$7-$D$8))/(1+$I$7)^($A$25-A15) -> 89.48862317 | K15: =J15/F15 -> 1349.975331 | L15: =J15/B15 -> 26.99950662
A16: 2018 | B16: 5.492802717 | C16: =$B$8 -> 0.6572270087 | D16: 0.02 | E16: =$B$10 -> -0.15 | F16: 0.1098560543 | G16: -0.8239204075 | H16: 0.4366083592 | I16: 0.7000655422 | J16: =NPV($I$7,H17:$H$25,)+($H$26/($I$7-$D$8))/(1+$I$7)^($A$25-A16) -> 98.00087713 | K16: =J16/F16 -> 892.0844438 | L16: =J16/B16 -> 17.84168888
A17: 2019 | B17: 9.102821015 | C17: =$B$8 -> 0.6572270087 | D17: 0.02 | E17: =$B$10 -> -0.15 | F17: 0.1820564203 | G17: -1.365423152 | H17: 0.7235591651 | I17: 1.423624707 | J17: =NPV($I$7,H18:$H$25,)+($H$26/($I$7-$D$8))/(1+$I$7)^($A$25-A17) -> 107.0774057 | K17: 588.1550648 | L17: 11.7631013
A18: 2020 | B18: 15.08544084 | C18: =$B$8 -> 0.6572270087 | D18: 0.02 | E18: =$B$10 -> -0.15 | F18: 0.3017088168 | G18: -2.262816126 | H18: 1.199101791 | I18: 2.622726498 | J18: =NPV($I$7,H19:$H$25,)+($H$26/($I$7-$D$8))/(1+$I$7)^($A$25-A18) -> 116.5860445 | K18: 386.4190834 | L18: 7.728381668
A19: 2021 | B19: 25 | C19: =$B$8 -> 0.6572270087 | D19: 0.02 | E19: =$C$10 -> -0.15 | F19: 0.5 | G19: -3.75 | H19: 1.987183874 | I19: 4.609910372 | J19: =NPV($I$7,H20:$H$25)+($H$26/($I$7-$D$8))/(1+$I$7)^($A$25-A19) -> 126.257465 | K19: 252.5149301 | L19: 5.050298601
A20: 2022 | B20: 35 | C20: =$C$8 -> 0.4 | D20: =$C$9 -> 0.04 | E20: -0.15 | F20: 1.4 | G20: -5.25 | H20: 2.9 | I20: 7.509910372 | J20: =NPV($I$7,H21:$H$25,)+($H$26/($I$7-$D$8))/(1+$I$7)^($A$25-A20) -> 135.9832115 | K20: 97.13086538 | L20: 3.885234615
A21: 2023 | B21: 49 | C21: =$C$8 -> 0.4 | D21: =$C$9 -> 0.04 | E21: -0.15 | F21: 1.96 | G21: -7.35 | H21: 4.06 | I21: 11.56991037 | J21: =NPV($I$7,H22:$H$25,)+($H$26/($I$7-$D$8))/(1+$I$7)^($A$25-A21) -> 145.5215327 | K21: 74.24567994 | L21: 2.969827198
A22: 2024 | B22: 68.6 | C22: =$C$8 -> 0.4 | D22: =$C$9 -> 0.04 | E22: -0.15 | F22: 2.744 | G22: -10.29 | H22: 5.684 | I22: 17.25391037 | J22: =NPV($I$7,H23:$H$25,)+($H$26/($I$7-$D$8))/(1+$I$7)^($A$25-A22) -> 154.389686 | K22: 56.26446281 | L22: 2.250578512
A23: 2025 | B23: 96.04 | C23: =$C$8 -> 0.4 | D23: =$C$9 -> 0.04 | E23: -0.15 | F23: 3.8416 | G23: -14.406 | H23: 7.9576 | I23: 25.21151037 | J23: =NPV($I$7,H24:$H$25,)+($H$26/($I$7-$D$8))/(1+$I$7)^($A$25-A23) -> 161.8710545 | K23: 42.13636364 | L23: 1.685454545
A24: 2026 | B24: 134.456 | C24: =$C$8 -> 0.4 | D24: =$C$9 -> 0.04 | E24: -0.15 | F24: 5.37824 | G24: -20.1684 | H24: 11.14064 | I24: 36.35215037 | J24: =NPV($I$7,H25:$H$25,)+($H$26/($I$7-$D$8))/(1+$I$7)^($A$25-A24) -> 166.91752 | K24: 31.03571429 | L24: 1.241428571
A25: 2027 | B25: 138.48968 | C25: =$D$8 -> 0.03 | D25: =$D$9 -> 0.08 | E25: =$D$10 -> -0.15 | F25: 11.0791744 | G25: -20.773452 | H25: 11.6842264 | I25: 48.03637677 | J25: =($H$26/($I$7-$D$8)) -> 171.9250456 | K25: 15.51785714 | L25: 1.241428571
A26: =A25+1 -> 2028 | B26: =B25*(1+C26) -> 142.6443704 | C26: =$D$8 -> 0.03 | D26: =$D$9 -> 0.08 | E26: =$D$10 -> -0.15 | F26: =B26*D26 -> 11.41154963 | G26: =B26*E26 -> -21.39665556 | H26: =B26*(D26-(E26-(E25/(1+C26)))) -> 12.03475319 | I26: =I25+H26 -> 60.07112996 | J26: =($H$26*(1+D8)/($I$7-$D$8)) -> 177.082797 | K26: 15.51785714 | L26: 1.241428571

Sheet Sheet2
A1: a)
A2: I didn't specify if we were talking about trailing or forward multiples, who knows the diff?
A3: trailing: Dec 2021 value and 2021 sales (so past sales), foward: Dec 2021 value and 2022 sales (future sales)
A4: Let's go with trailing
A5: trailing | B5: forward | C5: 25 growing at 40%
A6: 4*25=100 | B6: 4*35=140
A7: 6*25=150 | B7: 6*35=210
A9: b)
A10: Ask value and multiple: 126.3 and 5.1 trailing, so right at midpoint
A11: show my 3 stage model
A12: once you build model, all you have to do is change the blue cells and get the result
A13: go through assumptions
A14: all values were given except first stage growth, can back it out from 25M in 2021
A15: show how to calc value in 2021
A17: c)
A18: stay with model
A19: she is using the right multiple given projections, but if g lower or higher a, would her multiple still be right?
A20: Both would lower the correct multiple if in the future
A21: Do changes in first stage affect multiple? Show they don't.
A22: Only future growth, profitability, asset intensity affect evolution of future cash flows, and therefore the multiple
A23: Past growth affects EV through effect on base level of sales
A25: d)
A26: Post-money | B26: 125/(1.5)^5=16.5
A27: Pre-money | B27: 16.5-5=11.5
A28: Stake | B28: 5/16.5=30.4%
A30: e)
A31: upon conversion must own 30.4%, since ratio is 1:1 must get same preferred as converted common
A32: total shares | B32: 1M/(1-30.4%)=1,436,266 shares
A33: VC shares | B33: 30.4%*total=436,266
A34: share price | B34: 5M/436,266=11.46
A36: f)
A37: before she gets diluted, so | C37: 30.4%/(1-15%)=35.7%
A38: after nothing changes | C38: 0.304
A40: g)
A41: ask someone to draw on board
A42: draw slopes 100% until 5M FV, then 30.4%
A43: participating preferred: get Liq. Pref plus 30.4% of what's left after that in case of sale
A44: this is the double-dip feature of participating
A45: what if IPO? no participation
A46: will convert if 30.4%x>5, or x>16.5 (draw dashed line)
A48: h)
A49: Value of VC stake | B49: 5+30.4%(125-5)=41.5
A50: IRR | B50: (41.5/5)^(1/5)-1=52.7%
A51: Cash on cash | B51: 41.5/5=8.3
A52: unfair because getting more than 50% target return on which valuation was based
A54: i)
A55: what value does VC need to get 50% IRR? | D55: 30.4%*125=38
A56: check | B56: (38/5)^(1/5)-1=50%
A57: participation value | B57: 38-5=33
A58: counter offer stake | B58: 33/(125-5)=27.5%
A60: j)
A61: post-money | B61: 5/27.5%=18.2
A62: pre-money | B62: 18.2-5=13.2
A63: Total shares | B63: 1M/(1-27.5%-15%)=1,738,343
A64: VC shares | B64: 27.5%*total=477,592
A65: share price | B65: 5M/VC shares=10.5
A67: k)
A68: ask someone to draw diagrams
A69: label slopes: 27.5 for participating, 30.4 for simple
A71: l)
A72: must cross at 125M by construction, supposed to have equal 50% IRR for VC
A73: depends on her view on true value, simple convertible if she believes >125
A74: what are the incentives of each one?
A75: simple convertible gives stronger incentives for founder at start, then stronger incentives for VC beyond that
A77: m)
A78: Ask someone to write it out on board
A79: VC stake | B79: 30.4%/(1-15%)=35.7%
A80: Post money VC | B80: 5/35.7%=14.0 | F80: =5/(125/1.5^5) -> 0.30375
A81: Pre-money VC | B81: 14-5=9 | F81: =F80/(1-15%) -> 0.3573529412
A82: Total shares | B82: old shares/(1-new stake) | F82: =1/(1-F81) -> 1.556064073
A83: shares | B83: stake*total
A84: price | B84: post-money/total shares
B86: Pre-invest | C86: Powers | D86: Options
A87: Pre-money | C87: 9 | D87: 14
A88: Post-money | C88: 14 | D88: =F89 -> 16.46090535
A89: Price | C89: =14*1000000/C95 -> 8.997058824 | D89: =D88*1000000/D95 -> 8.991769547 | F89: =5/((5/(125/1.5^5)/0.85))/0.85 -> 16.46090535
A91: Shares
A92: Clarke | B92: 1000000 | C92: =B92 -> 1000000 | D92: =C92 -> 1000000
A93: Powers | C93: =F81*C95 -> 556064.0732 | D93: =C93 -> 556064.0732
A94: Option pool | D94: =15%*D95 -> 274599.5423
A95: Total | B95: =SUM(B92:B94) -> 1000000 | C95: =F82*1000000 -> 1556064.073 | D95: =C95/(1-15%) -> 1830663.616

Sheet Sheet3

Sheet Sheet1
A1: Question 1
A2: d) from pset 2
A3: VC stake | B3: 0.30375
A5: a) see graph on the right
A6: see alternative versions discussed in class
A7: at the bottom
A9: V | B9: P
A10: 0 | B10: 0
A11: 5 | B11: 5
A12: 30 | B12: =B11+$B$3*(A12-5) -> 12.59375
A14: b)
A15: IRR | B15: 0.526549552
A16: Cash on cash | B16: 8.29
A18: c)
A19: required stake | B19: =(5*1.5^5-5)/120 -> 0.2747395833
A21: d)
A22: Post-money | B22: =5/B19 -> 18.19905213
A23: Pre-money | B23: =B22-5 -> 13.19905213
A24: New shares | B24: =B19/(1-B19-15%) -> 0.4775916704
A25: Share price | B25: =5/B24 -> 10.46919431
A27: e)
A28: see graph
A31: V | B31: P
A32: 0 | B32: 0 | C32: 0
A33: 5 | B33: 5 | C33: 5
A34: =A33/B3 -> 16.46090535 | B34: 5 | C34: =$C$33+$B$19*(A34-$C$33) -> 8.14876436
A35: 125 | B35: =A35*$B$3 -> 37.96875 | C35: =$C$33+$B$19*(A35-$C$33) -> 37.96875
A36: 200 | B36: =A36*$B$3 -> 60.75 | C36: =$C$33+$B$19*(A36-$C$33) -> 58.57421875
A38: f)
A39: 125
A40: Dowside protection: PCP
A41: Incentives to add value: CP
A43: g) no discount/cap | B43: =0.5/25 -> 0.02
A44: h) 30% discount | B44: =B43/(1-0.3) -> 0.02857142857
A45: i) 20 million cap | B45: =B44 -> 0.02857142857 | C45: Using the discount. Using the cap gives: | G45: =0.5/20.5*(1-0.2) -> 0.01951219512
A48: Total shares after 1st round | C48: =1/(1-15%-$B$3) -> 1.830663616
A49: Powers shares | C49: =$B$3*C48 -> 0.5560640732
A50: Founder + option shares | C50: =C48-C49 -> 1.274599542
A51: share price 1st round | C51: =5/C49 -> 8.991769547
A52: 2nd VC shares | C52: =3/3.75 -> 0.8
A54: j) no protection
A55: Powers' stake | C55: =C49/(C48+C52) -> 0.2113778706
A57: k) full ratchet
A58: Powers stake | C58: =(5/3.75)/($C$50+5/3.75+$C$52) -> 0.3912440127
A60: l) weighted average anti dilution
A61: New conversion price | C61: =C51*(C48+3/9)/(C48+C52) -> 7.396674265
A62: Powers stake | C62: =(5/C61)/($C$50+5/C61+$C$52) -> 0.2457589737
A64: m) Drag along, redemption rights
A68: V | B68: P | E68: 2X liquidation preference
A69: 0 | B69: 0
A70: 10 | B70: 10
A71: 30 | B71: =B70+$B$3*(A71-10) -> 16.075
A83: V | B83: P | E83: Participation capped at 2X investment
A84: 0 | B84: 0
A85: 5 | B85: 5
A86: =5+5/$B$3 -> 21.46090535 | B86: 10
A87: =10/$B$3 -> 32.9218107 | B87: 10
A88: 50 | B88: =$B$3*A88 -> 15.1875
